fUSD/lending_fUSD_20240627
["ID","MTS","AMOUNT","RATE_DAILY","PERIOD"]
[330501776,1719521710833,1069.13006944,0.00011199,2]
[330501787,1719521997659,157.062806,0.00025,66]
[330501788,1719522001623,157.062806,0.00025,67]
[330501806,1719522256866,301.37576212,0.00011199,2]
[330501979,1719522632367,-196.12501385,0.00012314,2]
[330501980,1719522632377,-661.62168736,0.00013416,2]
[330501981,1719522632388,-1280.38241264,0.00013416,2]
[330501982,1719522632397,-690.10215601,0.00013472,2]
[330501983,1719522632407,-2356.12,0.00013516,2]
[330501984,1719522632416,-204.97769359,0.00013516,2]
[330501985,1719522632585,-232.69171363,0.00013516,2]
[330501986,1719522632594,-625.2,0.00013574,2]
[330501987,1719522632604,-3022.81708204,0.00017807,2]
[330501988,1719522632613,-2003.878178,0.00018648,2]
[330501989,1719522632623,-455.39,0.00018823,2]
[330501990,1719522632632,-432.86708779,0.00018864,2]
[330501991,1719522632642,-400.0,0.00018898,2]
[330501992,1719522632652,-155.0,0.00018899,2]
[330501993,1719522632661,-264.40040348,0.00018899,2]
[330501994,1719522632670,-282.71229546,0.00018899,2]
[330501995,1719522632679,-183.41796286,0.00018919,2]
[330501996,1719522632689,-366.01868755,0.00018919,2]
[330501997,1719522632698,-308.03328619,0.00019069,2]
[330501998,1719522632707,-155.09368845,0.00019077,2]
[330501999,1719522632717,-226.97665617,0.00019177,2]
[330502000,1719522632726,-657.84738546,0.00019352,2]
[330502001,1719522632736,-364.94342445,0.00019399,2]
[330502002,1719522632745,-3867.59,0.00019548,2]
[330502003,1719522632756,-363.75372231,0.00019565,2]
[330502004,1719522632765,-6077.9,0.00019724,2]
[330502005,1719522632774,-826.09,0.00019724,2]
[330502006,1719522632783,-207.51,0.00020493,2]
[330502007,1719522632792,-334.43,0.00020522,2]
[330502008,1719522632801,-2751.0,0.00020538,2]
[330502009,1719522632810,-152.65,0.00020548,2]
[330502010,1719522632820,-666.333,0.00020548,2]
[330502011,1719522632830,-1500.0,0.00020548,5]
[330502012,1719522632841,-10000.0,0.00020553,2]
[330502013,1719522632850,-1528.47,0.00020555,2]
[330502014,1719522632859,-20128.01,0.00020556,2]
[330502015,1719522632869,-1280.15,0.00020557,2]
[330502016,1719522632878,-171.86,0.00020572,2]
[330502017,1719522632888,-182.1,0.00020587,2]
[330502018,1719522632897,-250.0,0.00020587,2]
[330502019,1719522632906,-289.59,0.00020621,2]
[330502020,1719522632915,-250.0,0.00020631,2]
[330502021,1719522632925,-823.07,0.00020635,2]
[330502022,1719522632934,-200.0,0.00020639,2]
[330502023,1719522632943,-500.0,0.0002066,2]
[330502024,1719522632952,-250.0,0.00020964,2]
[330502025,1719522632962,-150.0,0.00021047,2]
[330502026,1719522632971,-1045.04,0.00021067,2]
[330502027,1719522632980,-455.39,0.00021087,2]
[330502028,1719522632989,-2079.0,0.000211,4]
[330502029,1719522632999,-359.0,0.00021121,2]
[330502030,1719522633009,-171.7,0.00021126,2]
[330502031,1719522633018,-770.33,0.00021148,2]
[330502032,1719522633028,-168.81,0.00021286,2]
[330502033,1719522633037,-159.86,0.00021918,2]
[330502034,1719522633046,-150.0,0.00021993,2]
[330502035,1719522633055,-150.47367995,0.00022023,2]
[330502036,1719522633064,-154.79832461,0.0002203,2]
[330502037,1719522633074,-217.68441816,0.00022037,2]
[330502038,1719522633083,-154.79832461,0.00022042,2]
[330502039,1719522633092,-166.66666668,0.00022072,2]
[330502040,1719522633101,-1119.80441239,0.00022085,2]
[330502041,1719522633111,-150.47367995,0.000221,2]
[330502042,1719522633120,-154.71176368,0.00022105,2]
[330502043,1719522633130,-166.66666666,0.00022222,2]
[330502044,1719522633139,-166.66666666,0.00022246,2]
[330502045,1719522633148,-152.32275894,0.00022312,2]
[330502046,1719522633157,-152.918136,0.00022335,2]
[330502047,1719522633166,-187.01760198,0.00022345,2]
[330502048,1719522633175,-158.5976384,0.00022345,2]
[330502049,1719522633185,-174.12975475,0.00022358,2]
[330502050,1719522633194,-1000.0,0.00022499,2]
[330502051,1719522633204,-1000.0,0.00022499,2]
[330502052,1719522633224,-166.66666666,0.0002253,2]
[330502053,1719522633233,-1043.79663552,0.0002253,2]
[330502054,1719522633243,-1189.26358379,0.0002253,2]
[330502055,1719522633254,-154.79832461,0.00022552,2]
[330502056,1719522633264,-159.50187487,0.00022597,2]
[330502057,1719522633273,-1119.80441239,0.00022597,2]
[330502058,1719522633283,-659.5783,0.00022598,2]
[330502059,1719522633293,-150.99915608,0.00022664,2]
[330502060,1719522633303,-152.38752206,0.00022687,2]
[330502061,1719522633312,-152.918136,0.00022711,2]
[330502062,1719522633322,-171.44092691,0.00022771,2]
[330502063,1719522633332,-500.0,0.00022804,2]
[330502064,1719522633342,-154.77869222,0.00022806,2]
[330502065,1719522633352,-187.01760198,0.00022811,2]
[330502066,1719522633362,-152.32275894,0.00022813,2]
[330502067,1719522633372,-2644.53273589,0.00022857,2]
[330502068,1719522633381,-172.28037771,0.00022859,2]
[330502069,1719522633391,-210.92,0.00022877,2]
[330502070,1719522633402,-648.1689526,0.00022884,2]
[330502072,1719522633414,-601.65736416,0.00022884,2]
[330502074,1719522633425,-648.16895255,0.00022885,2]
[330502076,1719522633436,-601.65736416,0.00022885,2]
[330502078,1719522633447,-648.16895255,0.00022885,2]
[330502080,1719522633460,-601.65736416,0.00022885,2]
[330502082,1719522633470,-648.16895255,0.00022886,2]
[330502084,1719522633480,-601.65736416,0.00022886,2]
[330502086,1719522633491,-648.16895255,0.00022887,2]
[330502088,1719522633501,-601.65736416,0.00022887,2]
[330502090,1719522633510,-648.16895255,0.00022887,2]
[330502092,1719522633520,-601.65736416,0.00022887,2]
[330502094,1719522633531,-648.16895255,0.00022888,2]
[330502095,1719522633540,-601.65736416,0.00022888,2]
[330502097,1719522633550,-648.16895255,0.00022889,2]
[330502100,1719522633560,-601.65736416,0.00022889,2]
[330502102,1719522633570,-648.16895255,0.00022889,2]
[330502103,1719522633580,-601.65736416,0.00022889,2]
[330502106,1719522633590,-339.69593792,0.0002289,2]
[330502108,1719522633600,-187.68301247,0.0002289,2]
[330502110,1719522633609,-648.16895255,0.0002289,2]
[330502112,1719522633618,-601.65736416,0.0002289,2]
[330502114,1719522633628,-4596.44425456,0.0002289,2]
[330502116,1719522633638,-2653.29930624,0.0002289,2]
[330502118,1719522633647,-719.7588,0.0002289,2]
[330502120,1719522633656,-516.0,0.000229,11]
[330502122,1719522633667,-1000.9,0.000229,2]
[330502124,1719522633676,-154.77869222,0.00022908,2]
[330502126,1719522633685,-154.79485175,0.00022945,2]
[330502128,1719522633695,-400.0,0.0002297,2]
[330502130,1719522633705,-400.0,0.0002297,2]
[330502132,1719522633714,-731.52421783,0.0002297,2]
[330502133,1719522633729,-626.58,0.0002297,3]
[330502134,1719522633739,-4344.87181602,0.0002297,3]
[330502135,1719522633749,-1448.29060534,0.0002298,3]
[330502136,1719522633760,-5793.16242136,0.0002298,3]
[330502137,1719522633771,-262370.650447,0.0002298,3]
[330502138,1719522633781,-756.6002018,0.00022984,2]
[330502139,1719522633790,-355.4036918,0.00022984,2]
[330502140,1719522633800,-426.48443018,0.00022984,2]
[330502141,1719522633811,-309.0562197,0.00022984,2]
[330502142,1719522633821,-2889.88,0.00022986,2]
[330502143,1719522633834,-2889.88,0.00022986,2]
[330502144,1719522633852,-1043.45839,0.00022986,2]
[330502145,1719522633863,-96980.33789006,0.0002299,5]
[330502146,1719522633881,-3058.47898081,0.0002299,5]
[330502147,1719522633894,-334.50747262,0.0002299,5]
[330502148,1719522633917,-19263.24906756,0.0002299,5]
[330502149,1719522633929,-818.82444517,0.0002299,5]
[330502150,1719522633941,-757.13168339,0.0002299,5]
[330502151,1719522633954,-7437.2549129,0.0002299,5]
[330502152,1719522633966,-25355.02207696,0.0002299,5]
[330502153,1719522633978,-387.0989336,0.0002299,5]
[330502154,1719522634050,-637.98233,0.0002299,5]
[330502155,1719522634063,-2497.40548677,0.0002299,5]
[330502156,1719522634075,-711.6,0.0002299,5]
[330502157,1719522634087,-541.7,0.0002299,5]
[330502158,1719522634154,-637.7,0.0002299,5]
[330502159,1719522634165,-3466.7,0.0002299,5]
[330502160,1719522634177,-522.58091288,0.0002299,5]
[330502161,1719522634214,-11847.20321666,0.0002299,5]
[330502162,1719522634226,-837.76170802,0.0002299,5]
[330502163,1719522634237,-4670.58140367,0.0002299,5]
[330502164,1719522634262,-350.0,0.0002299,5]
[330502165,1719522634274,-279.69657276,0.0002299,5]
[330502166,1719522634286,-1098.8377003,0.0002299,5]
[330502167,1719522634298,-399.12662878,0.0002299,5]
[330502168,1719522634310,-335.92939992,0.0002299,5]
[330502169,1719522634322,-348.89010204,0.0002299,5]
[330502170,1719522634334,-291.505,0.0002299,5]
[330502171,1719522634346,-6871.4397618,0.0002299,5]
[330502180,1719522638485,-227.28835865,0.00018835,2]
[330502181,1719522638496,-262.44194655,0.00018899,2]
[330502182,1719522638511,-51.5911414,0.00018899,2]
[330502183,1719522638522,-155.13600495,0.00018919,2]
[330502184,1719522638532,-2366.07284405,0.0002299,7]
[330502185,1719522638546,-2536.09896173,0.0002299,7]
[330502186,1719522638559,-10949.04545877,0.0002299,7]
[330502187,1719522638570,-7100.45454123,0.0002299,5]
[330502188,1719522638584,-7003.39403634,0.0002299,5]
[330502189,1719522638612,-1591.47066547,0.0002299,5]
[330502190,1719522638625,-550.13824922,0.0002299,5]
[330502191,1719522638656,-798.65000003,0.0002299,5]
[330502192,1719522638687,-6685.07965076,0.0002299,5]
[330502193,1719522638700,-1283.46999995,0.0002299,5]
[330502194,1719522638711,-3470.7036999,0.0002299,5]
[330502195,1719522638728,-459.18692792,0.0002299,5]
[330502196,1719522638741,-1408.23451708,0.0002299,5]
[330502197,1719522638775,-478.84,0.0002299,5]
[330502198,1719522638787,-17062.9249401,0.0002299,5]
[330502199,1719522638812,-4749.86869948,0.0002299,5]
[330502200,1719522638825,-279305.6738971,0.0002299,5]
[330502348,1719522640487,-7287.50121933,0.0002299,5]
[330502350,1719522640501,-314.83031118,0.0002299,5]
[330502353,1719522640515,-100917.33725737,0.0002299,5]
[330502357,1719522640555,-473.28023069,0.0002299,5]
[330502360,1719522640568,-1917.30000001,0.0002299,5]
[330502366,1719522640617,-10292.42843815,0.0002299,5]
[330502368,1719522640629,-306.95,0.0002299,5]
[330502374,1719522640682,-308.0,0.0002299,5]
[330502382,1719522640753,-5110.57347141,0.0002299,5]
[330502385,1719522640768,-29894.74548352,0.0002299,5]
[330502631,1719522643439,-6858.15701613,0.0002299,5]
[330502633,1719522643452,-346.0135875,0.0002299,5]
[330502635,1719522643467,-300.82044,0.0002299,5]
[330502640,1719522643587,-505.34240987,0.0002299,5]
[330502641,1719522643598,-313.77473623,0.0002299,5]
[330502642,1719522643609,-355.284441,0.0002299,5]
[330502643,1719522643620,-45294.78335788,0.0002299,5]
[330502644,1719522643632,-542.00088822,0.0002299,5]
[330502645,1719522643644,-304.37695136,0.0002299,5]
[330502646,1719522643677,-9252.92417263,0.0002299,5]
[330502647,1719522643689,-1732.88242047,0.0002299,5]
[330502650,1719522643778,-14272.0,0.0002299,5]
[330502654,1719522643798,-159268.84635098,0.0002299,5]
[330502656,1719522643807,-178211.50364901,0.0002299,5]
[330502658,1719522643818,-3314.88675106,0.0002299,5]
[330502660,1719522643829,-16289.06553561,0.0002299,5]
[330502820,1719522646505,-2722.13144878,0.0002299,5]
[330502825,1719522646568,-1384.35305882,0.0002299,5]
[330502830,1719522646742,-868.475,0.0002299,5]
[330502831,1719522646754,-13800.0,0.0002299,5]
[330502832,1719522646765,-3220.72041647,0.0002299,5]
[330502833,1719522646776,-3953.69733935,0.0002299,5]
[330502834,1719522646787,-335.60142443,0.0002299,5]
[330502835,1719522646798,-124190.01116631,0.0002299,5]
[330502836,1719522646809,-1110.65108149,0.0002299,5]
[330502837,1719522646820,-863.25539537,0.0002299,5]
[330502838,1719522646911,-353.68141749,0.0002299,5]
[330502839,1719522646923,-1494.38789802,0.0002299,5]
[330502851,1719522647080,-663764.23727021,0.0002299,5]
[330502853,1719522647089,-147038.07791673,0.0002299,5]
[330502855,1719522647101,-14749.55605562,0.0002299,5]
[330502857,1719522647112,-9049.34034,0.0002299,5]
[330502859,1719522647122,-5453.69448194,0.0002299,5]
[330502861,1719522647135,-5442.5200103,0.0002299,5]
[330502865,1719522647146,-6830.18951547,0.0002299,5]
[330502868,1719522647158,-6651.65233897,0.0002299,5]
[330502880,1719522647238,-1181.38920354,0.0002299,5]
[330503392,1719522795912,1000.0,0.00025906,120]
[330503393,1719523066006,233.15850218,0.00011199,2]
[330503394,1719523096791,264.10473276,0.00011199,2]
[330503395,1719523112912,346.11823219,0.00011199,2]
[330503396,1719523115936,226.97665617,0.00011199,2]
[330503403,1719523593449,226.97665617,0.00011199,2]
[330503445,1719523831874,-535.07999863,0.00012092,2]
[330503446,1719523831948,-481.28343796,0.00012092,2]
[330503480,1719523838740,-287.72359741,0.00012092,2]
[330503481,1719523838750,-43.27640259,0.00012213,2]
[330503482,1719523841285,-256.72359741,0.00012213,2]
[330503483,1719523841294,-498.47507571,0.00012214,2]
[330503484,1719523841307,-10738.30892429,0.00012214,2]
[330503485,1719523841316,-226.97665617,0.00013472,2]
[330503486,1719523841325,-2828.06320888,0.00017999,2]
[330503487,1719523841334,-2491.01847886,0.00017999,2]
[330503488,1719523841343,-551.66,0.00019401,2]
[330503489,1719523841353,-150.99,0.00019527,2]
[330503490,1719523841362,-467.31,0.00019527,2]
[330503492,1719523841373,-499.99,0.00019527,2]
[330503493,1719523841383,-284.61,0.00019725,2]
[330503494,1719523841393,-499.99,0.00019725,2]
[330503495,1719523841402,-5598.67,0.00019726,2]
[330503496,1719523841412,-6571.57978896,0.0001999,2]
[330503497,1719523841421,-1250.0,0.00021,2]
[330503498,1719523841430,-168.81,0.00021096,2]
[330503499,1719523841441,-7777.48,0.00021133,2]
[330503500,1719523841451,-2143.0,0.000212,4]
[330503502,1719523841461,-250.0,0.00021209,2]
[330503503,1719523841469,-605.62053367,0.00021213,2]
[330503504,1719523841478,-658.45,0.00021272,2]
[330503505,1719523841488,-250.0,0.00021294,2]
[330503506,1719523841498,-171.7,0.0002144,2]
[330503507,1719523841508,-167.21,0.00021454,2]
[330503508,1719523841517,-200.0,0.0002147,2]
[330503509,1719523841527,-356.99,0.00021644,2]
[330503510,1719523841538,-156.42,0.00021644,2]
[330503511,1719523841550,-551.66,0.00021665,2]
[330503512,1719523841560,-159.86,0.00021918,2]
[330503513,1719523841570,-642.65821955,0.00022003,2]
[330503514,1719523841579,-264.51339533,0.00022021,2]
[330503515,1719523841588,-853.06,0.00022027,2]
[330503516,1719523841597,-2556.3816447,0.0002205,2]
[330503517,1719523841607,-152.918136,0.000221,2]
[330503518,1719523841616,-158.5976384,0.00022108,2]
[330503519,1719523841625,-2556.3816447,0.00022143,2]
[330503520,1719523841637,-390.82466263,0.00022343,2]
[330503521,1719523841646,-154.79485175,0.00022441,2]
[330503522,1719523841656,-1259.93765136,0.00022508,2]
[330503523,1719523841665,-150.47367995,0.00022528,2]
[330503524,1719523841675,-1045.1507849,0.00022586,2]
[330503525,1719523841684,-642.65821955,0.00022607,2]
[330503526,1719523841694,-922.62016977,0.00022611,2]
[330503527,1719523841703,-152.32275894,0.00022643,2]
[330503528,1719523841712,-642.65821955,0.00022647,2]
[330503529,1719523841722,-2556.3816447,0.00022662,2]
[330503530,1719523841731,-869.54866,0.0002276,2]
[330503531,1719523841740,-500.0,0.00022802,2]
[330503532,1719523841749,-152.32275894,0.00022874,2]
[330503533,1719523841758,-220.09,0.00022877,3]
[330503534,1719523841767,-2294.4228,0.0002288,2]
[330503535,1719523841777,-869.03183517,0.00022881,2]
[330503536,1719523841787,-869.03183512,0.00022882,2]
[330503537,1719523841796,-869.03183512,0.00022883,2]
[330503538,1719523841805,-869.03183512,0.00022884,2]
[330503539,1719523841815,-170.93225625,0.00022884,2]
[330503540,1719523841824,-869.03183512,0.00022885,2]
[330503541,1719523841833,-170.93225625,0.00022885,2]
[330503542,1719523841842,-869.03183512,0.00022886,2]
[330503543,1719523841856,-170.93225625,0.00022886,2]
[330503544,1719523841866,-869.03183512,0.00022887,2]
[330503545,1719523841875,-170.93225625,0.00022887,2]
[330503546,1719523841884,-869.03183512,0.00022888,2]
[330503547,1719523841895,-170.93225625,0.00022888,2]
[330503548,1719523841905,-869.03183512,0.00022889,2]
[330503549,1719523841915,-170.93225625,0.00022889,2]
[330503550,1719523841926,-869.03183512,0.0002289,2]
[330503551,1719523841937,-170.93225625,0.0002289,2]
[330503552,1719523841947,-345.6289875,0.0002289,2]
[330503553,1719523841957,-4527.4326,0.0002289,2]
[330503554,1719523841966,-1259.93765136,0.000229,2]
[330503555,1719523841976,-1008.96,0.000229,2]
[330503556,1719523841986,-159.50150164,0.00022951,2]
[330503557,1719523841996,-5535.19213272,0.0002298,3]
[330503558,1719523842006,-11992.9162876,0.0002298,3]
[330503559,1719523842015,-18044.5606523,0.0002298,3]
[330503560,1719523842025,-1457.6529283,0.00022984,2]
[330503561,1719523842035,-938.7479657,0.00022984,2]
[330503562,1719523842044,-201.35143862,0.00022985,2]
[330503563,1719523842054,-152.96,0.00022985,2]
[330503564,1719523842064,-3265.0,0.00022986,2]
[330503565,1719523842074,-1000.0,0.00022989,2]
[330503566,1719523842083,-470.73403189,0.00022989,2]
[330503567,1719523842092,-216969.31454782,0.0002299,5]
[330503568,1719523842121,-30823.11077106,0.0002299,5]
[330503569,1719523842132,-600.96056067,0.0002299,5]
[330503585,1719523843205,-3006.59280063,0.0002299,5]
[330503586,1719523843248,-300.37956,0.0002299,5]
[330503589,1719523843287,-34579.85522057,0.0002299,5]
[330503638,1719523845881,-308.03328619,0.00019077,2]
[330503641,1719523845891,-397.36671381,0.00022986,2]
[330503655,1719523845982,-25.42328619,0.00022986,2]
[330503657,1719523845992,-526.63,0.00022986,2]
[330503659,1719523846002,-434.51901439,0.0002299,7]
[330503665,1719523846075,-1476.34045929,0.0002299,7]
[330503672,1719523846217,-1332.03950276,0.0002299,7]
[330503673,1719523846228,-46261.58629719,0.0002299,7]
[330503798,1719523957342,172.1,0.0002515,120]
[330503800,1719524222353,9497.0235031,0.00012,30]
[330503801,1719524251538,264.3264858,0.00011199,2]
[330503802,1719524261515,318.04969319,0.00011199,2]
[330503803,1719524277383,201.51938811,0.00011199,2]
[330503804,1719524288482,226.97665617,0.00011199,2]
[330503807,1719524773499,226.97665617,0.00011199,2]
[330503808,1719524804669,-161.05154285,0.00013372,2]
[330503809,1719524812004,226.97665617,0.00013574,2]
[330503819,1719524848112,393.32893008,0.00013574,2]
[330503821,1719524875006,226.97665617,0.00013574,2]
[330503880,1719525032160,-226.97665617,0.00016453,2]
[330503881,1719525032170,-4381.05319264,0.00017199,2]
[330503882,1719525032179,-308.03328619,0.00018919,2]
[330503883,1719525032189,-155.0,0.00018919,2]
[330503884,1719525032198,-300.0,0.00018998,2]
[330503885,1719525032207,-165.94507343,0.00019077,2]
[330503886,1719525032216,-150.0,0.00019425,2]
[330503887,1719525032226,-235.529,0.00019465,2]
[330503888,1719525032235,-557.84,0.00019527,2]
[330503889,1719525032244,-499.99,0.00019527,2]
[330503890,1719525032254,-1250.0,0.00021,2]
[330503891,1719525032263,-167.21,0.00021138,2]
[330503892,1719525032272,-250.0,0.00021193,2]
[330503893,1719525032281,-539.0,0.000212,4]
[330503894,1719525032291,-250.0,0.0002126,2]
[330503895,1719525032306,-250.0,0.0002136,2]
[330503896,1719525032315,-526.76,0.00021373,2]
[330503897,1719525032324,-500.0,0.00021377,2]
[330503898,1719525032333,-204.0,0.00021387,2]
[330503899,1719525032343,-17754.1,0.00021388,2]
[330503900,1719525032352,-360.01,0.00021447,2]
[330503901,1719525032361,-172.1,0.00021558,2]
[330503902,1719525032370,-158.1,0.00021644,2]
[330503903,1719525032380,-557.84,0.00021791,2]
[330503904,1719525032390,-159.86,0.00021918,2]
[330503905,1719525032399,-255.69628215,0.00022104,2]
[330503906,1719525032408,-331.53038561,0.00022112,2]
[330503907,1719525032417,-152.38752206,0.00022143,2]
[330503908,1719525032427,-161.45560979,0.00022193,2]
[330503909,1719525032437,-150.67314753,0.00022219,2]
[330503910,1719525032448,-165.15111206,0.00022241,2]
[330503911,1719525032457,-154.80579417,0.00022268,2]
[330503912,1719525032467,-891.86616411,0.00022282,2]
[330503913,1719525032476,-154.79485175,0.00022315,2]
[330503914,1719525032485,-2300.74348023,0.00022344,2]
[330503915,1719525032495,-377.79717387,0.00022361,2]
[330503916,1719525032504,-375.81600513,0.00022371,2]
[330503917,1719525032513,-1010.3124254,0.00022428,2]
[330503918,1719525032522,-152.9627514,0.00022499,2]
[330503919,1719525032531,-1175.94180793,0.000225,2]
[330503920,1719525032540,-255.69628215,0.00022544,2]
[330503921,1719525032549,-159.50187487,0.00022558,2]
[330503922,1719525032560,-377.79717387,0.00022625,2]
[330503923,1719525032569,-161.45560979,0.00022634,2]
[330503924,1719525032578,-166.66666666,0.00022656,2]
[330503925,1719525032587,-600.2359159,0.00022663,2]
[330503926,1719525032599,-1700.50756433,0.00022663,2]
[330503927,1719525032609,-166.66666666,0.00022675,2]
[330503928,1719525032618,-210.42827088,0.00022698,2]
[330503929,1719525032627,-331.53038561,0.00022739,2]
[330503930,1719525032637,-150.0,0.0002274,2]
[330503931,1719525032647,-922.39354,0.0002276,2]
[330503932,1719525032656,-331.53038561,0.00022794,2]
[330503933,1719525032665,-500.0,0.00022803,2]
[330503934,1719525032674,-166.66666666,0.00022827,2]
[330503935,1719525032683,-1010.3124254,0.00022873,2]
[330503936,1719525032693,-166.05158077,0.00022889,2]
[330503937,1719525032702,-166.05158077,0.00022889,2]
[330503938,1719525032711,-169.84796896,0.0002289,2]
[330503939,1719525032720,-172.26505131,0.0002289,2]
[330503940,1719525032730,-166.05158077,0.0002289,2]
[330503941,1719525032739,-172.81449373,0.0002289,2]
[330503942,1719525032748,-10000.0,0.0002289,2]
[330503943,1719525032757,-1027.2476,0.0002289,2]
[330503944,1719525032767,-490.0,0.000229,11]
[330503945,1719525032776,-2000.0,0.000229,2]
[330503946,1719525032786,-1004.8,0.000229,2]
[330503947,1719525032796,-2282.00834732,0.00022917,2]
[330503948,1719525032806,-467.45,0.0002297,3]
[330503949,1719525032815,-13513.56032487,0.0002298,3]
[330503950,1719525032894,-2597.6944,0.0002298,3]
[330503951,1719525032905,-322.719495,0.0002298,3]
[330503952,1719525032916,-559.75762178,0.0002298,3]
[330503953,1719525032927,-1100.11426185,0.0002298,3]
[330503954,1719525032937,-188.71393625,0.0002298,2]
[330503955,1719525032946,-188.71393625,0.0002298,2]
[330503956,1719525032955,-188.71393625,0.0002298,2]
[330503957,1719525032964,-1426.437016,0.00022984,2]
[330503958,1719525032973,-991.75996251,0.00022989,2]
[330503959,1719525032982,-527.0,0.0002299,2]
[330503960,1719525032992,-6633.54694855,0.0002299,5]
[330503961,1719525033001,-68274.27568976,0.0002299,5]
[330503962,1719525033012,-751.47837992,0.0002299,5]
[330503963,1719525033023,-286.18192272,0.0002299,5]
[330503964,1719525033035,-721976.57078805,0.0002299,5]
[330503965,1719525033046,-1617.61111582,0.0002299,5]
[330503970,1719525037929,-2566.19965638,0.0002299,5]
[330503971,1719525037941,-1985.64934153,0.0002299,5]
[330503976,1719525038101,-4381.05319264,0.00016808,2]
[330503977,1719525038111,-8848.02248737,0.0002299,7]
[330503978,1719525038123,-473.3383626,0.0002299,7]
[330503979,1719525038135,-600.5,0.0002299,7]
[330503980,1719525038146,-10070.38581821,0.0002299,7]
[330503981,1719525038159,-1792.71872463,0.0002299,7]
[330503982,1719525038200,-1714.02530894,0.0002299,7]
[330503983,1719525038212,-372.94911677,0.0002299,7]
[330503984,1719525038318,-9301.42617694,0.0002299,7]
[330503985,1719525038328,-10653.08546886,0.0002299,5]
[330504162,1719525040202,-13696.23224959,0.0002299,5]
[330504163,1719525040214,-96326.3534702,0.0002299,5]
[330504164,1719525040225,-507.16519997,0.0002299,5]
[330504165,1719525040236,-1058.38289253,0.0002299,5]
[330504166,1719525040331,-615.10008721,0.0002299,5]
[330504167,1719525040342,-1606.0,0.0002299,5]
[330504470,1719525043231,-13874.05453016,0.0002299,5]
[330504473,1719525043243,-349.229994,0.0002299,5]
[330504658,1719525218368,-1338.66621473,0.00015535,2]
[330504688,1719525985487,1902.10726114,0.00011199,2]
[330504801,1719526232284,-620.99,0.00013128,2]
[330504802,1719526232408,-642.09088063,0.00013128,2]
[330504803,1719526232419,-155.0,0.00013574,2]
[330504804,1719526232430,-720.52768086,0.00013759,2]
[330504805,1719526232440,-155.0,0.00013802,2]
[330504806,1719526232450,-364.844001,0.00013849,2]
[330504807,1719526232460,-158.25040673,0.00013849,2]
[330504808,1719526232470,-226.97665617,0.00013849,2]
[330504809,1719526232479,-304.87399131,0.00013849,2]
[330504810,1719526232489,-155.0,0.00013889,2]
[330504811,1719526232498,-155.0,0.00013889,2]
[330504812,1719526232507,-155.0,0.00013889,2]
[330504813,1719526232517,-482.87871356,0.00013889,2]
[330504814,1719526232526,-155.0,0.00013889,2]
[330504816,1719526232535,-264.3264858,0.00013889,2]
[330504818,1719526232545,-163.61123882,0.00013889,2]
[330504819,1719526232555,-308.03328619,0.00013889,2]
[330504821,1719526232564,-308.03328619,0.00013899,2]
[330504823,1719526232573,-16742.10100222,0.00015535,2]
[330504826,1719526232585,-3142.12564769,0.00015535,2]
[330504828,1719526232596,-394.95499992,0.00015535,2]
[330504829,1719526232608,-308.285,0.00015535,2]
[330504832,1719526232692,-4043.23158877,0.00015535,2]
[330504834,1719526232702,-269.27286365,0.00017444,2]
[330504836,1719526232711,-235.27505482,0.00017444,2]
[330504838,1719526232720,-366.11090361,0.00017444,2]
[330504839,1719526232730,-1902.10726114,0.00018081,2]
[330504841,1719526232739,-202.01806079,0.00018919,2]
[330504843,1719526232748,-560.31,0.00018985,2]
[330504845,1719526232758,-300.0,0.00019331,2]
[330504847,1719526232767,-278.10795837,0.000205,2]
[330504848,1719526232776,-250.0,0.00020826,2]
[330504849,1719526232786,-421.4,0.00020842,2]
[330504850,1719526232796,-250.0,0.00020866,2]
[330504851,1719526232805,-172.1,0.00020894,2]
[330504852,1719526232815,-2166.0,0.000212,4]
[330504853,1719526232825,-560.31,0.00021248,2]
[330504854,1719526232836,-250.0,0.00021298,2]
[330504855,1719526232845,-488.01,0.00021379,2]
[330504856,1719526232856,-339.14,0.00021644,2]